[Event "Early-Titled-Tuesday-Blitz-September-05-2023"]
[Site "Chess.com"]
[Date "2023.09.05"]
[Round "8"]
[White "ErikRonka"]
[Black "Fengwi"]
[Result "1-0"]
[WhiteElo "2491"]
[BlackElo "2334"]
[TimeControl "180+1"]
[EndTime "9:25:46 PDT"]
[Termination "ErikRonka won on time"]

1. b4 {[%clk 0:03:00.9]} 1... d5 {[%clk 0:02:34.1]} 2. Bb2 {[%clk 0:03:00.7]}
2... Nf6 {[%clk 0:02:30.5]} 3. Nf3 {[%clk 0:02:56.2]} 3... Bg4 {[%clk
0:02:28.8]} 4. g3 {[%clk 0:02:54.2]} 4... e6 {[%clk 0:02:22]} 5. a3 {[%clk
0:02:51.9]} 5... a5 {[%clk 0:02:15]} 6. Ne5 {[%clk 0:02:45.4]} 6... Bf5 {[%clk
0:02:13.9]} 7. b5 {[%clk 0:02:43]} 7... Nbd7 {[%clk 0:02:12.5]} 8. Bg2 {[%clk
0:02:41.6]} 8... Nxe5 {[%clk 0:02:07.5]} 9. Bxe5 {[%clk 0:02:42.5]} 9... Be7
{[%clk 0:02:03.7]} 10. O-O {[%clk 0:02:42.1]} 10... O-O {[%clk 0:02:03.3]} 11.
d3 {[%clk 0:02:41]} 11... Nd7 {[%clk 0:02:02.3]} 12. Bb2 {[%clk 0:02:40.2]}
12... Bf6 {[%clk 0:02:02.3]} 13. Qc1 {[%clk 0:02:39.8]} 13... Bxb2 {[%clk
0:01:59.7]} 14. Qxb2 {[%clk 0:02:40.7]} 14... Qf6 {[%clk 0:01:57]} 15. c3 {[%clk
0:02:23.4]} 15... Nc5 {[%clk 0:01:52.4]} 16. a4 {[%clk 0:02:12]} 16... Rad8
{[%clk 0:01:48.7]} 17. Nd2 {[%clk 0:02:11.4]} 17... h5 {[%clk 0:01:22]} 18. d4
{[%clk 0:02:01.4]} 18... Nd7 {[%clk 0:01:15.3]} 19. e4 {[%clk 0:01:58.7]} 19...
dxe4 {[%clk 0:01:12.7]} 20. Nxe4 {[%clk 0:01:59.6]} 20... Qg6 {[%clk 0:01:11.7]}
21. Qe2 {[%clk 0:01:57.9]} 21... h4 {[%clk 0:01:10.7]} 22. Rfe1 {[%clk
0:01:53.7]} 22... b6 {[%clk 0:01:07.6]} 23. Nd2 {[%clk 0:01:41.6]} 23... Rfe8
{[%clk 0:00:52.7]} 24. Nf3 {[%clk 0:01:41.1]} 24... hxg3 {[%clk 0:00:48.3]} 25.
hxg3 {[%clk 0:01:40.7]} 25... Bg4 {[%clk 0:00:46.9]} 26. Qe3 {[%clk 0:01:34.5]}
26... Qh5 {[%clk 0:00:44.8]} 27. Nd2 {[%clk 0:01:23.8]} 27... e5 {[%clk
0:00:09.4]} 28. f3 {[%clk 0:01:22.8]} 28... Bh3 {[%clk 0:00:09.6]} 29. g4 {[%clk
0:01:22.1]} 29... Qh4 {[%clk 0:00:08.4]} 30. Qf2 {[%clk 0:01:16.7]} 30... Qxf2+
{[%clk 0:00:08.2]} 31. Kxf2 {[%clk 0:01:17.6]} 31... Bxg2 {[%clk 0:00:08.5]} 32.
Kxg2 {[%clk 0:01:18.5]} 32... exd4 {[%clk 0:00:08.8]} 33. cxd4 {[%clk 0:01:19]}
33... Nf6 {[%clk 0:00:08.2]} 34. Nb3 {[%clk 0:01:13.6]} 34... Kf8 {[%clk
0:00:06.4]} 35. Kg3 {[%clk 0:01:13.6]} 35... Rxe1 {[%clk 0:00:03.1]} 36. Rxe1
{[%clk 0:01:13.9]} 36... Nd5 {[%clk 0:00:03.8]} 37. Rc1 {[%clk 0:01:13.8]} 37...
Rd7 {[%clk 0:00:03]} 38. f4 {[%clk 0:01:13.9]} 38... Re7 {[%clk 0:00:02.6]} 39.
Nd2 {[%clk 0:01:11]} 39... Re3+ {[%clk 0:00:01.8]} 40. Kf2 {[%clk 0:01:11.2]}
40... Rd3 {[%clk 0:00:01.7]} 41. Nf3 {[%clk 0:01:09.4]} 1-0

[Event "Early-Titled-Tuesday-Blitz-September-05-2023"]
[Site "Chess.com"]
[Date "2023.09.05"]
[Round "8"]
[White "FormerProdigy"]
[Black "GaiozNigalidze"]
[Result "1-0"]
[WhiteElo "2907"]
[BlackElo "2767"]
[TimeControl "180+1"]
[EndTime "9:25:49 PDT"]
[Termination "FormerProdigy won by resignation"]

1. d4 {[%clk 0:03:00.9]} 1... Nf6 {[%clk 0:02:56.9]} 2. c4 {[%clk 0:03:01.4]}
2... c5 {[%clk 0:02:57.1]} 3. d5 {[%clk 0:03:01.4]} 3... b5 {[%clk 0:02:57.2]}
4. cxb5 {[%clk 0:03:02.3]} 4... a6 {[%clk 0:02:57.7]} 5. bxa6 {[%clk 0:03:03.2]}
5... e6 {[%clk 0:02:57.9]} 6. Nc3 {[%clk 0:03:02.6]} 6... exd5 {[%clk
0:02:58.4]} 7. Nxd5 {[%clk 0:03:03.5]} 7... Be7 {[%clk 0:02:59]} 8. Nxe7 {[%clk
0:02:40.8]} 8... Qxe7 {[%clk 0:02:58.3]} 9. e3 {[%clk 0:02:41.1]} 9... O-O
{[%clk 0:02:53.1]} 10. Nf3 {[%clk 0:02:35.7]} 10... d5 {[%clk 0:02:51.3]} 11.
Be2 {[%clk 0:02:34.9]} 11... Bxa6 {[%clk 0:02:43.8]} 12. O-O {[%clk 0:02:31.2]}
12... Nc6 {[%clk 0:02:44]} 13. Bxa6 {[%clk 0:02:26.8]} 13... Rxa6 {[%clk
0:02:43.4]} 14. b3 {[%clk 0:02:27.7]} 14... Qe6 {[%clk 0:01:35.4]} 15. Bb2
{[%clk 0:02:21.2]} 15... Ne4 {[%clk 0:01:35.8]} 16. Nd2 {[%clk 0:02:11.9]} 16...
Nd6 {[%clk 0:01:32.4]} 17. Qc2 {[%clk 0:02:04.6]} 17... Ra5 {[%clk 0:00:50.7]}
18. a3 {[%clk 0:01:58.9]} 18... Rc8 {[%clk 0:00:44.6]} 19. Rfc1 {[%clk
0:01:49.1]} 19... f6 {[%clk 0:00:39.1]} 20. h3 {[%clk 0:01:40.3]} 20... Ne7
{[%clk 0:00:39.1]} 21. Qd1 {[%clk 0:01:28.7]} 21... Rb5 {[%clk 0:00:30.7]} 22.
a4 {[%clk 0:01:28.7]} 22... Ra5 {[%clk 0:00:28.3]} 23. Ba3 {[%clk 0:01:23.4]}
23... Nef5 {[%clk 0:00:20.7]} 24. b4 {[%clk 0:01:22.2]} 24... cxb4 {[%clk
0:00:18.9]} 25. Bxb4 {[%clk 0:01:22.9]} 25... Raa8 {[%clk 0:00:19]} 26. Bxd6
{[%clk 0:01:14.7]} 26... Nxd6 {[%clk 0:00:17.7]} 27. Rxc8+ {[%clk 0:01:13.7]}
27... Qxc8 {[%clk 0:00:14.8]} 28. a5 {[%clk 0:00:54]} 28... Qc5 {[%clk
0:00:12.3]} 29. Nb3 {[%clk 0:00:52.4]} 29... Qc4 {[%clk 0:00:10.2]} 30. Rc1
{[%clk 0:00:50.6]} 30... Qb5 {[%clk 0:00:10.2]} 31. Rc5 {[%clk 0:00:50.5]} 31...
Qa6 {[%clk 0:00:06.1]} 32. Qxd5+ {[%clk 0:00:50.4]} 32... Kh8 {[%clk 0:00:06.7]}
33. Rc6 {[%clk 0:00:50.2]} 1-0

[Event "Early-Titled-Tuesday-Blitz-September-05-2023"]
[Site "Chess.com"]
[Date "2023.09.05"]
[Round "8"]
[White "Anton_Demchenko"]
[Black "Bigfish1995"]
[Result "1-0"]
[WhiteElo "2953"]
[BlackElo "3089"]
[TimeControl "180+1"]
[EndTime "9:25:52 PDT"]
[Termination "Anton_Demchenko won by resignation"]

1. e4 {[%clk 0:03:00.9]} 1... a6 {[%clk 0:02:59.6]} 2. d4 {[%clk 0:03:00.5]}
2... Ra7 {[%clk 0:03:00.1]} 3. Bd3 {[%clk 0:03:01.2]} 3... Ra8 {[%clk
0:03:00.6]} 4. c4 {[%clk 0:02:59.5]} 4... g6 {[%clk 0:02:59.7]} 5. f4 {[%clk
0:02:59.1]} 5... Bg7 {[%clk 0:02:58.7]} 6. Nf3 {[%clk 0:02:59.8]} 6... c5 {[%clk
0:02:56.1]} 7. dxc5 {[%clk 0:02:45.1]} 7... Qa5+ {[%clk 0:02:52.8]} 8. Bd2
{[%clk 0:02:32.5]} 8... Qxc5 {[%clk 0:02:51.2]} 9. Nc3 {[%clk 0:02:33.2]} 9...
d6 {[%clk 0:02:36.8]} 10. Nd5 {[%clk 0:02:28.9]} 10... Nf6 {[%clk 0:02:23.7]}
11. b4 {[%clk 0:02:07.2]} 11... Qa7 {[%clk 0:02:13]} 12. Be3 {[%clk 0:01:56]}
12... b6 {[%clk 0:02:04.4]} 13. Bxb6 {[%clk 0:01:56.1]} 13... Qb7 {[%clk
0:02:02.6]} 14. Nc7+ {[%clk 0:01:56.7]} 14... Kf8 {[%clk 0:02:01.7]} 15. Nxa8
{[%clk 0:01:57.3]} 15... Nbd7 {[%clk 0:01:55.2]} 16. Bd4 {[%clk 0:01:54.1]}
16... Qxb4+ {[%clk 0:01:39.9]} 17. Qd2 {[%clk 0:01:42.1]} 17... Qb7 {[%clk
0:01:39.6]} 18. Nb6 {[%clk 0:01:37.4]} 18... Nxb6 {[%clk 0:01:31.4]} 19. Rb1
{[%clk 0:01:33.9]} 19... Nfd7 {[%clk 0:01:25.1]} 20. Bxb6 {[%clk 0:01:17.1]}
20... Nxb6 {[%clk 0:01:20]} 21. Qb4 {[%clk 0:01:12.4]} 21... Qd7 {[%clk
0:01:04.7]} 22. Qxb6 {[%clk 0:01:11.6]} 22... Bc3+ {[%clk 0:01:05.3]} 23. Ke2
{[%clk 0:01:07]} 23... Qg4 {[%clk 0:01:04.4]} 24. Qe3 {[%clk 0:00:41.8]} 24...
Qxg2+ {[%clk 0:01:00.2]} 25. Qf2 {[%clk 0:00:42.4]} 25... Qh3 {[%clk 0:00:54]}
26. Rb3 {[%clk 0:00:37.7]} 26... Bf6 {[%clk 0:00:40.9]} 27. Qg3 {[%clk
0:00:36.9]} 27... Qh5 {[%clk 0:00:39.6]} 28. e5 {[%clk 0:00:35.3]} 28... Bg7
{[%clk 0:00:34.2]} 29. Rb8 {[%clk 0:00:34.7]} 1-0

[Event "Early-Titled-Tuesday-Blitz-September-05-2023"]
[Site "Chess.com"]
[Date "2023.09.05"]
[Round "8"]
[White "Shockerlover"]
[Black "Doudou2015"]
[Result "0-1"]
[WhiteElo "1972"]
[BlackElo "2178"]
[TimeControl "180+1"]
[EndTime "9:26:02 PDT"]
[Termination "Doudou2015 won by resignation"]

1. d4 {[%clk 0:02:45.3]} 1... d5 {[%clk 0:02:59.3]} 2. Nf3 {[%clk 0:02:30.2]}
2... Nf6 {[%clk 0:02:58.6]} 3. c4 {[%clk 0:02:28]} 3... e6 {[%clk 0:02:58]} 4.
g3 {[%clk 0:02:25.6]} 4... c6 {[%clk 0:02:57.9]} 5. Bg2 {[%clk 0:02:26.1]} 5...
Nbd7 {[%clk 0:02:56.9]} 6. Qc2 {[%clk 0:02:25.3]} 6... Be7 {[%clk 0:02:55.5]} 7.
O-O {[%clk 0:02:24.4]} 7... O-O {[%clk 0:02:55.4]} 8. Rd1 {[%clk 0:02:22.9]}
8... h6 {[%clk 0:02:51.8]} 9. Nbd2 {[%clk 0:02:21.5]} 9... Re8 {[%clk
0:02:51.5]} 10. e4 {[%clk 0:02:19.7]} 10... dxe4 {[%clk 0:02:52.3]} 11. Nxe4
{[%clk 0:02:19.4]} 11... Nxe4 {[%clk 0:02:53.1]} 12. Qxe4 {[%clk 0:02:18.4]}
12... Nf6 {[%clk 0:02:53.9]} 13. Qc2 {[%clk 0:02:17.7]} 13... Bd6 {[%clk
0:02:51.4]} 14. Ne5 {[%clk 0:02:13]} 14... Qc7 {[%clk 0:02:51.1]} 15. Qe2 {[%clk
0:02:04.7]} 15... Bd7 {[%clk 0:02:42.3]} 16. b3 {[%clk 0:02:03.7]} 16... Rad8
{[%clk 0:02:41.4]} 17. Bb2 {[%clk 0:02:03]} 17... Bc8 {[%clk 0:02:26.9]} 18. Rd2
{[%clk 0:01:56.4]} 18... Bb4 {[%clk 0:02:22]} 19. Rd3 {[%clk 0:01:52.5]} 19...
Bd6 {[%clk 0:02:15.8]} 20. Rad1 {[%clk 0:01:51.1]} 20... Nd7 {[%clk 0:02:09.7]}
21. Qh5 {[%clk 0:01:48.5]} 21... Nf6 {[%clk 0:01:55.1]} 22. Qf3 {[%clk
0:01:46.5]} 22... c5 {[%clk 0:01:47.5]} 23. Ng4 {[%clk 0:01:32]} 23... Nxg4
{[%clk 0:01:43.4]} 24. Qxg4 {[%clk 0:01:31.8]} 24... e5 {[%clk 0:01:43.6]} 25.
Qh4 {[%clk 0:01:15.4]} 25... exd4 {[%clk 0:01:42.2]} 26. Bc1 {[%clk 0:01:12.1]}
26... Qe7 {[%clk 0:01:36]} 27. Qh5 {[%clk 0:01:07.6]} 27... Qf6 {[%clk
0:01:28.4]} 28. Bd5 {[%clk 0:01:05.6]} 28... Qg6 {[%clk 0:01:18.4]} 29. Qf3
{[%clk 0:01:02.8]} 29... Re7 {[%clk 0:01:03.2]} 30. R3d2 {[%clk 0:00:06.9]}
30... Bg4 {[%clk 0:01:01.6]} 31. Qd3 {[%clk 0:00:05.7]} 31... Qxd3 {[%clk
0:00:59]} 32. Rxd3 {[%clk 0:00:05.1]} 32... Bxd1 {[%clk 0:00:57.9]} 33. Rxd1
{[%clk 0:00:06]} 33... b6 {[%clk 0:00:54.7]} 34. Kg2 {[%clk 0:00:06.7]} 34...
Rde8 {[%clk 0:00:52.9]} 35. h4 {[%clk 0:00:07.6]} 35... Re1 {[%clk 0:00:52.1]}
36. Rxe1 {[%clk 0:00:07.3]} 36... Rxe1 {[%clk 0:00:52.9]} 37. Bd2 {[%clk
0:00:07]} 37... Re2 {[%clk 0:00:52.7]} 0-1

[Event "Early-Titled-Tuesday-Blitz-September-05-2023"]
[Site "Chess.com"]
[Date "2023.09.05"]
[Round "8"]
[White "psychokiller48"]
[Black "Bugcrusher"]
[Result "0-1"]
[WhiteElo "2675"]
[BlackElo "2348"]
[TimeControl "180+1"]
[EndTime "9:26:06 PDT"]
[Termination "Bugcrusher won by resignation"]

1. e4 {[%clk 0:02:59.5]} 1... e6 {[%clk 0:02:56.8]} 2. d4 {[%clk 0:02:59.2]}
2... d5 {[%clk 0:02:57.2]} 3. Nc3 {[%clk 0:02:59.5]} 3... Bb4 {[%clk 0:02:56.9]}
4. e5 {[%clk 0:02:59]} 4... c5 {[%clk 0:02:56.7]} 5. a3 {[%clk 0:02:59.5]} 5...
Bxc3+ {[%clk 0:02:57]} 6. bxc3 {[%clk 0:03:00.4]} 6... Qa5 {[%clk 0:02:57.2]} 7.
Bd2 {[%clk 0:02:58.9]} 7... Qa4 {[%clk 0:02:55.6]} 8. Nf3 {[%clk 0:02:57.3]}
8... b6 {[%clk 0:02:54.6]} 9. h4 {[%clk 0:02:48.7]} 9... Ba6 {[%clk 0:02:52.8]}
10. h5 {[%clk 0:02:48.3]} 10... h6 {[%clk 0:02:52.5]} 11. Rh4 {[%clk 0:02:48]}
11... Ne7 {[%clk 0:02:52.1]} 12. dxc5 {[%clk 0:02:47.8]} 12... Qd7 {[%clk
0:02:38.8]} 13. cxb6 {[%clk 0:02:07.1]} 13... Bxf1 {[%clk 0:02:34.7]} 14. Kxf1
{[%clk 0:02:06.8]} 14... axb6 {[%clk 0:02:35]} 15. c4 {[%clk 0:02:06.2]} 15...
Nbc6 {[%clk 0:02:33.1]} 16. cxd5 {[%clk 0:02:05.1]} 16... Qxd5 {[%clk
0:02:30.9]} 17. Bb4 {[%clk 0:02:00.6]} 17... Nxb4 {[%clk 0:02:27.4]} 18. Rxb4
{[%clk 0:01:53.1]} 18... Rxa3 {[%clk 0:02:25.8]} 19. Rxb6 {[%clk 0:01:48.8]}
19... Rxa1 {[%clk 0:02:19.9]} 20. Qxa1 {[%clk 0:01:48.2]} 20... O-O {[%clk
0:02:18.6]} 21. Qd4 {[%clk 0:01:44.5]} 21... Qa2 {[%clk 0:02:11.7]} 22. Qb2
{[%clk 0:01:43.4]} 22... Qc4+ {[%clk 0:02:11.4]} 23. Kg1 {[%clk 0:01:43.3]}
23... Nd5 {[%clk 0:02:10.2]} 24. Rb8 {[%clk 0:01:35.1]} 24... Nf4 {[%clk
0:01:58.1]} 25. Rxf8+ {[%clk 0:01:33.8]} 25... Kxf8 {[%clk 0:01:58.4]} 26. Qb8+
{[%clk 0:01:34]} 26... Ke7 {[%clk 0:01:58.5]} 27. Qd6+ {[%clk 0:01:31.4]} 27...
Ke8 {[%clk 0:01:58.7]} 28. g3 {[%clk 0:01:18.8]} 28... Ne2+ {[%clk 0:01:57.4]}
29. Kg2 {[%clk 0:01:16.5]} 29... Qxc2 {[%clk 0:01:57.1]} 30. Qb8+ {[%clk
0:01:04.3]} 30... Ke7 {[%clk 0:01:56.7]} 31. Qg8 {[%clk 0:01:00.5]} 31... g6
{[%clk 0:01:44.7]} 32. Qg7 {[%clk 0:00:52.6]} 32... gxh5 {[%clk 0:01:30.5]} 33.
Qf6+ {[%clk 0:00:51.1]} 33... Ke8 {[%clk 0:01:30]} 34. Qxh6 {[%clk 0:00:41.6]}
34... Qe4 {[%clk 0:01:29.8]} 35. Qxh5 {[%clk 0:00:28.9]} 35... Nd4 {[%clk
0:01:29.2]} 36. Qh8+ {[%clk 0:00:29.4]} 36... Ke7 {[%clk 0:01:29.2]} 37. Qf6+
{[%clk 0:00:30.1]} 37... Ke8 {[%clk 0:01:29.6]} 38. Qf4 {[%clk 0:00:27.8]} 38...
Qxf4 {[%clk 0:01:11.4]} 39. gxf4 {[%clk 0:00:28.7]} 39... Ne2 {[%clk 0:01:09.2]}
40. f5 {[%clk 0:00:26.2]} 40... exf5 {[%clk 0:01:09.5]} 41. Nh4 {[%clk
0:00:26.2]} 41... Nf4+ {[%clk 0:01:08]} 42. Kf3 {[%clk 0:00:26.3]} 42... Nd3
{[%clk 0:01:08.3]} 43. Nxf5 {[%clk 0:00:20.6]} 43... Nxe5+ {[%clk 0:01:08.5]}
44. Ke4 {[%clk 0:00:21.3]} 44... Ng4 {[%clk 0:01:08]} 45. f3 {[%clk 0:00:20.8]}
45... Nh2 {[%clk 0:01:06.5]} 46. f4 {[%clk 0:00:18.8]} 46... Ng4 {[%clk
0:01:06.7]} 47. Nd6+ {[%clk 0:00:17.9]} 47... Ke7 {[%clk 0:01:06.8]} 48. Nf5+
{[%clk 0:00:18.5]} 48... Kf6 {[%clk 0:01:06.9]} 49. Nd6 {[%clk 0:00:19.1]} 49...
Ke6 {[%clk 0:01:06.3]} 50. Nf5 {[%clk 0:00:16.2]} 50... Nf6+ {[%clk 0:01:04.8]}
0-1

[Event "Early-Titled-Tuesday-Blitz-September-05-2023"]
[Site "Chess.com"]
[Date "2023.09.05"]
[Round "8"]
[White "FARIZA2018"]
[Black "Witik"]
[Result "0-1"]
[WhiteElo "2525"]
[BlackElo "2676"]
[TimeControl "180+1"]
[EndTime "9:26:08 PDT"]
[Termination "Witik won by resignation"]

1. e4 {[%clk 0:03:00.9]} 1... c6 {[%clk 0:02:59.3]} 2. d4 {[%clk 0:03:00.7]}
2... d5 {[%clk 0:02:59.8]} 3. Nc3 {[%clk 0:03:01.1]} 3... dxe4 {[%clk
0:03:00.1]} 4. Nxe4 {[%clk 0:03:01.6]} 4... Bf5 {[%clk 0:03:00.7]} 5. Ng3 {[%clk
0:03:00.8]} 5... Bg6 {[%clk 0:03:01.4]} 6. h4 {[%clk 0:02:59]} 6... h6 {[%clk
0:03:01.3]} 7. Nf3 {[%clk 0:02:59]} 7... e6 {[%clk 0:03:01.7]} 8. Bd3 {[%clk
0:02:54.2]} 8... Bxd3 {[%clk 0:03:00]} 9. Qxd3 {[%clk 0:02:54]} 9... Nf6 {[%clk
0:03:00.7]} 10. Bf4 {[%clk 0:02:52.7]} 10... Bd6 {[%clk 0:03:00.7]} 11. Bxd6
{[%clk 0:02:51.8]} 11... Qxd6 {[%clk 0:03:00.5]} 12. O-O-O {[%clk 0:02:51.7]}
12... Nbd7 {[%clk 0:03:00.5]} 13. Kb1 {[%clk 0:02:51.7]} 13... O-O {[%clk
0:02:40.5]} 14. Ne4 {[%clk 0:02:45.4]} 14... Nxe4 {[%clk 0:02:40.4]} 15. Qxe4
{[%clk 0:02:45.6]} 15... Nf6 {[%clk 0:02:41.2]} 16. Qe2 {[%clk 0:02:45.2]} 16...
Rfd8 {[%clk 0:02:39.9]} 17. Ne5 {[%clk 0:02:29.2]} 17... c5 {[%clk 0:02:34.7]}
18. g4 {[%clk 0:02:26.1]} 18... Nd7 {[%clk 0:01:40.4]} 19. g5 {[%clk 0:01:52.9]}
19... cxd4 {[%clk 0:01:30.2]} 20. Nxd7 {[%clk 0:01:51.2]} 20... Rxd7 {[%clk
0:01:30.4]} 21. gxh6 {[%clk 0:01:51.4]} 21... g6 {[%clk 0:01:27.7]} 22. Qg4
{[%clk 0:01:44.2]} 22... Qe5 {[%clk 0:01:11.4]} 23. h5 {[%clk 0:01:38.3]} 23...
g5 {[%clk 0:01:11.4]} 24. Rdg1 {[%clk 0:01:37.8]} 24... Kh7 {[%clk 0:01:06.9]}
25. Re1 {[%clk 0:01:03.1]} 25... Qf5 {[%clk 0:01:05.3]} 26. Qxf5+ {[%clk
0:00:43.5]} 26... exf5 {[%clk 0:01:05.3]} 27. Re5 {[%clk 0:00:43.9]} 27... Kxh6
{[%clk 0:00:46.1]} 28. Rxf5 {[%clk 0:00:43.9]} 28... Re8 {[%clk 0:00:46.7]} 29.
Kc1 {[%clk 0:00:39.7]} 29... Re2 {[%clk 0:00:35.9]} 30. Kd1 {[%clk 0:00:38.5]}
30... d3 {[%clk 0:00:35.9]} 31. Rh3 {[%clk 0:00:22.2]} 31... dxc2+ {[%clk
0:00:32.7]} 0-1

[Event "Early-Titled-Tuesday-Blitz-September-05-2023"]
[Site "Chess.com"]
[Date "2023.09.05"]
[Round "8"]
[White "Duong57"]
[Black "Roman_Ovetchkin"]
[Result "0-1"]
[WhiteElo "2487"]
[BlackElo "2649"]
[TimeControl "180+1"]
[EndTime "9:26:08 PDT"]
[Termination "Roman_Ovetchkin won by resignation"]

1. d4 {[%clk 0:03:00.9]} 1... Nf6 {[%clk 0:02:58.8]} 2. c4 {[%clk 0:03:00.3]}
2... c5 {[%clk 0:02:59]} 3. d5 {[%clk 0:02:59.5]} 3... b5 {[%clk 0:02:59.1]} 4.
cxb5 {[%clk 0:02:58.3]} 4... a6 {[%clk 0:02:59.3]} 5. bxa6 {[%clk 0:02:59.2]}
5... g6 {[%clk 0:02:58.6]} 6. Nc3 {[%clk 0:02:59.4]} 6... Bg7 {[%clk 0:02:59.1]}
7. e4 {[%clk 0:02:59.1]} 7... O-O {[%clk 0:02:59.6]} 8. Nf3 {[%clk 0:02:57.2]}
8... Qa5 {[%clk 0:02:55.2]} 9. Bd2 {[%clk 0:02:56]} 9... Bxa6 {[%clk 0:02:55.1]}
10. Bxa6 {[%clk 0:02:48.3]} 10... Qxa6 {[%clk 0:02:54.9]} 11. Qe2 {[%clk
0:02:35.5]} 11... d6 {[%clk 0:02:53]} 12. Qxa6 {[%clk 0:02:20.3]} 12... Nxa6
{[%clk 0:02:50.7]} 13. O-O {[%clk 0:02:19.7]} 13... Rfb8 {[%clk 0:02:50.5]} 14.
Rfb1 {[%clk 0:02:03.4]} 14... Nb4 {[%clk 0:02:44]} 15. Ne1 {[%clk 0:02:02.4]}
15... Ng4 {[%clk 0:02:32.3]} 16. a3 {[%clk 0:01:58.4]} 16... Na6 {[%clk
0:02:32.1]} 17. Nf3 {[%clk 0:01:21.1]} 17... c4 {[%clk 0:02:15.7]} 18. h3 {[%clk
0:01:19.1]} 18... Ne5 {[%clk 0:02:15.6]} 19. Nxe5 {[%clk 0:01:17.9]} 19... Bxe5
{[%clk 0:02:15]} 20. Be3 {[%clk 0:01:18.2]} 20... Rb3 {[%clk 0:02:12.7]} 21. Na4
{[%clk 0:01:03]} 21... Rab8 {[%clk 0:02:08.6]} 22. Rc1 {[%clk 0:01:02.8]} 22...
Rxb2 {[%clk 0:01:45.4]} 23. f4 {[%clk 0:01:02]} 23... Re2 {[%clk 0:01:27.3]} 24.
fxe5 {[%clk 0:01:00.9]} 24... Rxe3 {[%clk 0:01:27.3]} 25. exd6 {[%clk 0:01:01]}
25... exd6 {[%clk 0:01:20.5]} 26. Rxc4 {[%clk 0:01:00.5]} 26... Rb5 {[%clk
0:01:19.1]} 27. Kf2 {[%clk 0:00:50.4]} 27... Reb3 {[%clk 0:01:17.3]} 28. Rc6
{[%clk 0:00:41.3]} 28... Ra5 {[%clk 0:01:16.9]} 29. Nb6 {[%clk 0:00:32.7]} 29...
Nc5 {[%clk 0:01:14.8]} 30. Nc4 {[%clk 0:00:27.4]} 30... Nxe4+ {[%clk 0:01:13.6]}
31. Kg1 {[%clk 0:00:27.5]} 31... Rxd5 {[%clk 0:01:13.5]} 32. Re1 {[%clk
0:00:26.1]} 32... Rd4 {[%clk 0:01:11.2]} 33. Rc8+ {[%clk 0:00:18.5]} 33... Kg7
{[%clk 0:01:10.8]} 34. a4 {[%clk 0:00:15.5]} 34... Rc3 {[%clk 0:01:06.5]} 35.
Nb6 {[%clk 0:00:07.3]} 35... Rxc8 {[%clk 0:01:05]} 36. Nxc8 {[%clk 0:00:08.2]}
36... Rxa4 {[%clk 0:01:05.2]} 37. Rd1 {[%clk 0:00:08.5]} 37... Ra6 {[%clk
0:01:03.4]} 38. Kh2 {[%clk 0:00:07.2]} 38... Kf6 {[%clk 0:00:59.7]} 39. Rf1+
{[%clk 0:00:06.5]} 39... Ke6 {[%clk 0:00:59.3]} 40. Re1 {[%clk 0:00:06.4]} 40...
f5 {[%clk 0:00:58.7]} 41. Rc1 {[%clk 0:00:06.4]} 41... Kd7 {[%clk 0:00:58.1]}
0-1

[Event "Early-Titled-Tuesday-Blitz-September-05-2023"]
[Site "Chess.com"]
[Date "2023.09.05"]
[Round "8"]
[White "viktorgen2021"]
[Black "AradNazari"]
[Result "0-1"]
[WhiteElo "2484"]
[BlackElo "2712"]
[TimeControl "180+1"]
[EndTime "9:26:09 PDT"]
[Termination "AradNazari won by resignation"]

1. Nf3 {[%clk 0:03:00.9]} 1... c5 {[%clk 0:02:59.7]} 2. c4 {[%clk 0:02:58.2]}
2... Nc6 {[%clk 0:02:59.8]} 3. g3 {[%clk 0:02:58]} 3... g6 {[%clk 0:03:00.3]} 4.
Bg2 {[%clk 0:02:58.6]} 4... Bg7 {[%clk 0:03:01]} 5. O-O {[%clk 0:02:59.3]} 5...
e5 {[%clk 0:03:01.6]} 6. Nc3 {[%clk 0:02:59.4]} 6... Nge7 {[%clk 0:03:02.3]} 7.
d3 {[%clk 0:03:00]} 7... O-O {[%clk 0:03:02.9]} 8. Ne1 {[%clk 0:02:58.8]} 8...
d6 {[%clk 0:03:02.9]} 9. Nc2 {[%clk 0:02:59.3]} 9... Rb8 {[%clk 0:03:02.3]} 10.
Rb1 {[%clk 0:02:59.7]} 10... a6 {[%clk 0:03:02.1]} 11. b4 {[%clk 0:02:57.3]}
11... cxb4 {[%clk 0:02:59.3]} 12. Nxb4 {[%clk 0:02:58.2]} 12... Nxb4 {[%clk
0:02:59.4]} 13. Rxb4 {[%clk 0:02:59.1]} 13... Qc7 {[%clk 0:02:53.8]} 14. Nd5
{[%clk 0:02:45.5]} 14... Nxd5 {[%clk 0:02:52]} 15. Bxd5 {[%clk 0:02:45.2]} 15...
b5 {[%clk 0:02:51.3]} 16. Be3 {[%clk 0:02:37.2]} 16... Bb7 {[%clk 0:02:41.9]}
17. Bxb7 {[%clk 0:02:31.2]} 17... Rxb7 {[%clk 0:02:41.4]} 18. cxb5 {[%clk
0:02:28.1]} 18... axb5 {[%clk 0:02:37.3]} 19. Qb3 {[%clk 0:02:27.2]} 19... Qa5
{[%clk 0:02:30.9]} 20. Rb1 {[%clk 0:02:20.4]} 20... Ra8 {[%clk 0:02:19]} 21.
Rxb5 {[%clk 0:02:10.2]} 21... Rxb5 {[%clk 0:02:16.9]} 22. Qxb5 {[%clk 0:02:10]}
22... Qxa2 {[%clk 0:02:17.8]} 23. Rb2 {[%clk 0:01:51.8]} 23... Qa1+ {[%clk
0:02:07.8]} 24. Rb1 {[%clk 0:01:51.5]} 24... Qa2 {[%clk 0:02:01]} 25. Rb2 {[%clk
0:01:51.5]} 25... Qe6 {[%clk 0:02:01.6]} 26. Qb8+ {[%clk 0:01:22.7]} 26... Rxb8
{[%clk 0:02:00.6]} 27. Rxb8+ {[%clk 0:01:23.6]} 27... Bf8 {[%clk 0:01:58.7]} 28.
Bh6 {[%clk 0:01:23.4]} 28... Qe7 {[%clk 0:01:59.3]} 29. Rxf8+ {[%clk 0:01:06.9]}
29... Qxf8 {[%clk 0:02:00.2]} 30. Bxf8 {[%clk 0:01:07.4]} 30... Kxf8 {[%clk
0:02:00.8]} 31. f4 {[%clk 0:01:05.8]} 31... Ke7 {[%clk 0:01:53.7]} 32. Kf2
{[%clk 0:01:03.7]} 32... Ke6 {[%clk 0:01:53.6]} 33. e4 {[%clk 0:01:01.8]} 33...
d5 {[%clk 0:01:50.4]} 34. Kf3 {[%clk 0:00:49.7]} 34... f6 {[%clk 0:01:41.8]} 35.
exd5+ {[%clk 0:00:44.9]} 35... Kxd5 {[%clk 0:01:42]} 36. fxe5 {[%clk 0:00:38.2]}
36... Kxe5 {[%clk 0:01:41.9]} 37. Ke3 {[%clk 0:00:36.4]} 37... f5 {[%clk
0:01:35.4]} 38. d4+ {[%clk 0:00:25]} 38... Kd5 {[%clk 0:01:35.8]} 39. Kd3 {[%clk
0:00:24.2]} 39... g5 {[%clk 0:01:31.9]} 40. Ke3 {[%clk 0:00:15.7]} 40... Kc4
{[%clk 0:01:26.3]} 41. g4 {[%clk 0:00:16]} 41... f4+ {[%clk 0:01:15.5]} 42. Ke4
{[%clk 0:00:16]} 42... Kb5 {[%clk 0:01:09.4]} 43. d5 {[%clk 0:00:14.4]} 43...
Kb6 {[%clk 0:01:06.8]} 44. h4 {[%clk 0:00:11.6]} 44... h6 {[%clk 0:01:06.7]} 45.
hxg5 {[%clk 0:00:11.7]} 45... hxg5 {[%clk 0:01:07.6]} 46. d6 {[%clk 0:00:06.1]}
46... Kc6 {[%clk 0:01:07.2]} 47. Ke5 {[%clk 0:00:06.3]} 47... Kd7 {[%clk
0:01:07.3]} 0-1